fUST/lending_fUST_20250720
["ID","MTS","AMOUNT","RATE_DAILY","PERIOD"]
[373322662,1752945041414,-460.0,0.00017723,2]
[373322663,1752945041424,-394.27197461,0.00017723,2]
[373322664,1752945041437,-383.1922272,0.00017723,2]
[373322693,1752945043639,-1318.07,0.00017174,2]
[373322695,1752945043650,-570.18,0.00017174,2]
[373322697,1752945043660,-460.0,0.00017175,2]
[373322699,1752945043670,-1318.07,0.00017448,2]
[373322701,1752945043680,-570.18,0.00017448,2]
[373322703,1752945043690,-460.0,0.00017449,2]
[373322705,1752945043700,-1318.07,0.00017722,2]
[373322707,1752945043710,-570.18,0.00017722,2]
[373322709,1752945043720,-636.55579819,0.00017723,2]
[373322711,1752945043730,-460.0,0.00017723,2]
[373322713,1752945043740,-460.0,0.00017724,2]
[373322715,1752945043750,-460.0,0.00017725,2]
[373322717,1752945043760,-631.23,0.00017725,2]
[373322719,1752945043770,-460.0,0.00017725,2]
[373322721,1752945043780,-460.0,0.00017725,2]
[373322724,1752945043790,-460.0,0.00017826,2]
[373322726,1752945043802,-336.92612869,0.00017826,2]
[373322728,1752945043811,-829.05,0.00017826,2]
[373322730,1752945043821,-508.21,0.00017826,2]
[373322731,1752945043834,-707.44880246,0.000179,2]
[373322734,1752945043852,-585.18609412,0.000179,2]
[373322736,1752945043870,-432.73892352,0.000179,2]
[373322740,1752945043890,-405.35845576,0.000179,2]
[373322979,1752945046791,-3365.11566367,0.000179,2]
[373322981,1752945046801,-259.3534954,0.00017996,2]
[373322983,1752945046810,-719.84,0.00017996,2]
[373322985,1752945046820,-460.0,0.00017996,2]
[373322987,1752945046829,-460.0,0.00017996,2]
[373322989,1752945046839,-460.0,0.00017996,2]
[373322991,1752945046848,-460.0,0.00017996,2]
[373322993,1752945046859,-460.0,0.00017996,2]
[373322995,1752945046868,-1398.46,0.00017996,2]
[373322997,1752945046877,-1318.07,0.00017996,2]
[373322999,1752945046887,-570.18,0.00017996,2]
[373323001,1752945046897,-460.0,0.00017997,2]
[373323003,1752945046907,-1414.02,0.00017997,2]
[373323005,1752945046916,-460.0,0.00017997,2]
[373323007,1752945046926,-460.0,0.00017998,2]
[373323008,1752945046936,-460.0,0.00017999,2]
[373323010,1752945046946,-631.23,0.00017999,2]
[373323012,1752945046956,-460.0,0.00017999,2]
[373323014,1752945046967,-460.0,0.00017999,2]
[373323016,1752945046977,-829.05,0.000181,2]
[373323018,1752945046986,-420.0,0.00018166,2]
[373323020,1752945046997,-5495.84793931,0.00018176,2]
[373323022,1752945047006,-500.0,0.00018217,2]
[373323024,1752945047016,-719.84,0.0001827,2]
[373323026,1752945047026,-460.0,0.0001827,2]
[373323028,1752945047037,-460.0,0.0001827,2]
[373323030,1752945047048,-460.0,0.0001827,2]
[373323032,1752945047058,-460.0,0.0001827,2]
[373323034,1752945047069,-460.0,0.0001827,2]
[373323036,1752945047079,-1398.46,0.0001827,2]
[373323038,1752945047094,-1318.07,0.0001827,2]
[373323040,1752945047104,-570.18,0.0001827,2]
[373323042,1752945047115,-460.0,0.00018271,2]
[373323044,1752945047124,-1414.02,0.00018271,2]
[373323046,1752945047134,-460.0,0.00018271,2]
[373323048,1752945047144,-460.0,0.00018272,2]
[373323050,1752945047154,-460.0,0.00018273,2]
[373323052,1752945047164,-631.23,0.00018273,2]
[373323054,1752945047175,-460.0,0.00018273,2]
[373323056,1752945047185,-460.0,0.00018273,2]
[373323058,1752945047195,-829.05,0.00018374,2]
[373323060,1752945047205,-5495.84793931,0.00018452,2]
[373323062,1752945047216,-719.84,0.00018544,2]
[373323064,1752945047226,-460.0,0.00018544,2]
[373323066,1752945047237,-460.0,0.00018544,2]
[373323068,1752945047248,-460.0,0.00018544,2]
[373323071,1752945047258,-1398.46,0.00018544,2]
[373323073,1752945047270,-1318.07,0.00018544,2]
[373323075,1752945047279,-570.18,0.00018544,2]
[373323076,1752945047290,-460.0,0.00018545,2]
[373323079,1752945047300,-1414.02,0.00018545,2]
[373323081,1752945047311,-460.0,0.00018545,2]
[373323083,1752945047321,-460.0,0.00018546,2]
[373323085,1752945047331,-460.0,0.00018547,2]
[373323087,1752945047343,-631.23,0.00018547,2]
[373323089,1752945047354,-460.0,0.00018547,2]
[373323091,1752945047365,-460.0,0.00018547,2]
[373323093,1752945047375,-193.43,0.00018565,3]
[373323095,1752945047385,-580.32,0.00018565,3]
[373323097,1752945047394,-182.49011836,0.00018572,2]
[373323098,1752945047405,-172.41735825,0.00018572,2]
[373323101,1752945047416,-772.86942002,0.00018572,2]
[373323103,1752945047426,-772.86942002,0.00018572,2]
[373323105,1752945047437,-772.86942002,0.00018572,2]
[373323107,1752945047446,-772.86942002,0.00018572,2]
[373323109,1752945047456,-772.86942002,0.00018572,2]
[373323111,1752945047465,-772.86942002,0.00018572,2]
[373323113,1752945047474,-772.86942002,0.00018572,2]
[373323115,1752945047484,-772.86942002,0.00018572,2]
[373323117,1752945047494,-772.86942002,0.00018572,2]
[373323118,1752945047504,-772.86942002,0.00018572,2]
[373323120,1752945047514,-772.86942002,0.00018572,2]
[373323123,1752945047524,-772.86942002,0.00018572,2]
[373323125,1752945047535,-772.86942002,0.00018572,2]
[373323127,1752945047545,-772.86942002,0.00018572,2]
[373323129,1752945047555,-772.86942002,0.00018572,2]
[373323131,1752945047564,-772.86942002,0.00018572,2]
[373323133,1752945047574,-772.86942002,0.00018572,2]
[373323135,1752945047584,-772.86942002,0.00018572,2]
[373323137,1752945047595,-772.86942002,0.00018572,2]
[373323139,1752945047605,-772.86942002,0.00018572,2]
[373323140,1752945047615,-772.86942002,0.00018572,2]
[373323142,1752945047624,-772.86942002,0.00018572,2]
[373323144,1752945047635,-772.86942002,0.00018572,2]
[373323147,1752945047645,-772.86942002,0.00018572,2]
[373323149,1752945047654,-772.86942002,0.00018572,2]
[373323151,1752945047664,-772.86942002,0.00018572,2]
[373323153,1752945047674,-772.86942002,0.00018572,2]
[373323155,1752945047683,-772.86942002,0.00018572,2]
[373323157,1752945047693,-772.86942002,0.00018572,2]
[373323159,1752945047702,-772.86942002,0.00018572,2]
[373323161,1752945047712,-772.86942002,0.00018572,2]
[373323163,1752945047722,-772.86942002,0.00018572,2]
[373323165,1752945047732,-772.86942002,0.00018572,2]
[373323167,1752945047742,-772.86942002,0.00018572,2]
[373323169,1752945047752,-772.86942002,0.00018572,2]
[373323171,1752945047761,-772.86942002,0.00018572,2]
[373323173,1752945047771,-772.86942002,0.00018572,2]
[373323175,1752945047780,-772.86942002,0.00018572,2]
[373323177,1752945047789,-772.86942002,0.00018572,2]
[373323179,1752945047799,-772.86942002,0.00018572,2]
[373323181,1752945047809,-772.86942002,0.00018572,2]
[373323182,1752945047819,-772.86942002,0.00018572,2]
[373323185,1752945047829,-772.86942002,0.00018572,2]
[373323187,1752945047839,-772.86942002,0.00018572,2]
[373323189,1752945047849,-772.86942002,0.00018572,2]
[373323190,1752945047859,-772.86942002,0.00018572,2]
[373323193,1752945047869,-772.86942002,0.00018572,2]
[373323194,1752945047879,-772.86942002,0.00018572,2]
[373323197,1752945047890,-772.86942002,0.00018572,2]
[373323198,1752945047900,-772.86942002,0.00018572,2]
[373323200,1752945047909,-772.86942002,0.00018572,2]
[373323202,1752945047919,-772.86942002,0.00018572,2]
[373323204,1752945047928,-772.86942002,0.00018572,2]
[373323206,1752945047939,-500.0,0.00018573,2]
[373323208,1752945047950,-207.4,0.00018575,2]
[373323210,1752945047959,-151.0,0.00018575,2]
[373323212,1752945047969,-151.0,0.00018575,2]
[373323214,1752945047978,-151.0,0.00018575,2]
[373323216,1752945047988,-151.0,0.00018575,2]
[373323218,1752945047998,-151.0,0.00018575,2]
[373323221,1752945048008,-151.0,0.00018575,2]
[373323223,1752945048018,-151.0,0.00018575,2]
[373323225,1752945048028,-151.0,0.00018575,2]
[373323227,1752945048038,-151.0,0.00018575,2]
[373323229,1752945048048,-151.0,0.00018575,2]
[373323231,1752945048058,-3801.642,0.00018575,2]
[373323233,1752945048068,-25000.0,0.00018575,2]
[373323235,1752945048079,-24198.96664904,0.00018575,2]
[373323237,1752945048093,-160.0,0.00018605,2]
[373323239,1752945048103,-3942.302754,0.0001863,2]
[373323241,1752945048113,-829.05,0.00018648,2]
[373323243,1752945048124,-583.65337217,0.00018685,2]
[373323244,1752945048135,-5495.84793931,0.00018728,2]
[373323246,1752945048146,-386.87,0.00018755,3]
[373323249,1752945048158,-719.84,0.00018818,2]
[373323251,1752945048169,-460.0,0.00018818,2]
[373323253,1752945048180,-460.0,0.00018818,2]
[373323255,1752945048191,-460.0,0.00018818,2]
[373323257,1752945048202,-1398.46,0.00018818,2]
[373323258,1752945048213,-1318.07,0.00018818,2]
[373323260,1752945048223,-570.18,0.00018818,2]
[373323263,1752945048237,-460.0,0.00018819,2]
[373323265,1752945048248,-1414.02,0.00018819,2]
[373323266,1752945048258,-460.0,0.00018819,2]
[373323269,1752945048269,-460.0,0.0001882,2]
[373323271,1752945048281,-460.0,0.00018821,2]
[373323273,1752945048291,-631.23,0.00018821,2]
[373323275,1752945048302,-460.0,0.00018821,2]
[373323277,1752945048313,-460.0,0.00018821,2]
[373323278,1752945048323,-3915.07394709,0.000189,2]
[373323280,1752945048335,-829.05,0.00018922,2]
[373323282,1752945048347,-180.0,0.00018931,2]
[373323284,1752945048358,-5495.84793931,0.00019003,2]
[373323286,1752945048368,-160.0,0.00019052,2]
[373323288,1752945048378,-160.0,0.00019052,2]
[373323290,1752945048389,-476.34170116,0.00019052,2]
[373323292,1752945048400,-160.0,0.00019052,2]
[373323294,1752945048410,-160.0,0.00019052,2]
[373323296,1752945048420,-160.0,0.00019052,2]
[373323298,1752945048430,-12612.80205064,0.00019052,2]
[373323300,1752945048440,-839.454303,0.00019052,2]
[373323302,1752945048450,-230.94145789,0.00019052,2]
[373323304,1752945048460,-215.67360783,0.00019052,2]
[373323306,1752945048469,-525.83049785,0.00019052,2]
[373323308,1752945048479,-214.52603969,0.00019052,2]
[373323310,1752945048489,-719.84,0.00019092,2]
[373323312,1752945048498,-460.0,0.00019092,2]
[373323314,1752945048507,-460.0,0.00019092,2]
[373323316,1752945048517,-460.0,0.00019092,2]
[373323318,1752945048527,-1398.46,0.00019092,2]
[373323320,1752945048537,-1318.07,0.00019092,2]
[373323322,1752945048547,-570.18,0.00019092,2]
[373323324,1752945048557,-460.0,0.00019093,2]
[373323326,1752945048566,-1414.02,0.00019093,2]
[373323328,1752945048575,-460.0,0.00019093,2]
[373323330,1752945048585,-460.0,0.00019094,2]
[373323332,1752945048596,-460.0,0.00019095,2]
[373323334,1752945048605,-631.23,0.00019095,2]
[373323336,1752945048614,-460.0,0.00019095,2]
[373323338,1752945048623,-460.0,0.00019095,2]
[373323340,1752945048632,-500.0,0.00019121,2]
[373323342,1752945048642,-151.0,0.00019123,2]
[373323344,1752945048652,-25000.0,0.00019123,2]
[373323346,1752945048661,-260.0,0.00019153,2]
[373323348,1752945048676,-209.894089,0.00019178,2]
[373323350,1752945048686,-666.0,0.00019178,2]
[373323352,1752945048696,-829.05,0.00019196,2]
[373323354,1752945048705,-14121.56268696,0.00019266,2]
[373323356,1752945048715,-5495.84793931,0.00019279,2]
[373323358,1752945048723,-255.0,0.00019311,2]
[373323360,1752945048733,-100000.0,0.00019329,2]
[373323362,1752945048742,-719.84,0.00019366,2]
[373323363,1752945048751,-460.0,0.00019366,2]
[373323366,1752945048761,-460.0,0.00019366,2]
[373323368,1752945048771,-460.0,0.00019366,2]
[373323370,1752945048780,-1398.46,0.00019366,2]
[373323372,1752945048790,-1318.07,0.00019366,2]
[373323374,1752945048801,-570.18,0.00019366,2]
[373323376,1752945048810,-460.0,0.00019367,2]
[373323378,1752945048820,-1414.02,0.00019367,2]
[373323380,1752945048829,-460.0,0.00019367,2]
[373323394,1752945048839,-460.0,0.00019368,2]
[373323397,1752945048975,-460.0,0.00019369,2]
[373323399,1752945048986,-631.23,0.00019369,2]
[373323401,1752945048996,-460.0,0.00019369,2]
[373323403,1752945049007,-460.0,0.00019369,2]
[373323406,1752945049017,-700.0,0.0001942,2]
[373323407,1752945049026,-164.692936,0.00019452,2]
[373323410,1752945049036,-829.05,0.0001947,2]
[373323412,1752945049045,-17671.62993046,0.00019543,2]
[373323414,1752945049055,-5495.84793931,0.00019555,2]
[373323416,1752945049064,-719.84,0.0001964,2]
[373323418,1752945049074,-460.0,0.0001964,2]
[373323420,1752945049088,-460.0,0.0001964,2]
[373323422,1752945049098,-460.0,0.0001964,2]
[373323424,1752945049107,-1398.46,0.0001964,2]
[373323425,1752945049117,-1318.07,0.0001964,2]
[373323427,1752945049126,-570.18,0.0001964,2]
[373323429,1752945049136,-460.0,0.00019641,2]
[373323431,1752945049147,-1414.02,0.00019641,2]
[373323433,1752945049157,-460.0,0.00019641,2]
[373323435,1752945049168,-460.0,0.00019642,2]
[373323437,1752945049178,-460.0,0.00019643,2]
[373323438,1752945049188,-631.23,0.00019643,2]
[373323439,1752945049197,-460.0,0.00019643,2]
[373323440,1752945049207,-460.0,0.00019643,2]
[373323441,1752945049216,-280.55485677,0.00019671,2]
[373323442,1752945049226,-360.0,0.00019701,2]
[373323443,1752945049236,-829.05,0.00019744,2]
[373323444,1752945049245,-5495.84793931,0.00019831,2]
[373323445,1752945049255,-587.0,0.00019849,2]
[373323446,1752945049264,-719.84,0.00019914,2]
[373323447,1752945049274,-461.829597,0.00019914,2]
[373323448,1752945049283,-460.0,0.00019914,2]
[373323449,1752945049293,-460.0,0.00019914,2]
[373323450,1752945049302,-1398.46,0.00019914,2]
[373323451,1752945049312,-1318.07,0.00019914,2]
[373323452,1752945049321,-570.18,0.00019914,2]
[373323453,1752945049331,-460.0,0.00019915,2]
[373323454,1752945049341,-1414.02,0.00019915,2]
[373323455,1752945049350,-460.0,0.00019915,2]
[373323456,1752945049360,-460.0,0.00019916,2]
[373323457,1752945049369,-460.0,0.00019917,2]
[373323459,1752945049380,-631.23,0.00019917,2]
[373323461,1752945049390,-460.0,0.00019917,2]
[373323463,1752945049400,-460.0,0.00019917,2]
[373323465,1752945049409,-386.86,0.00019935,3]
[373323467,1752945049418,-215.0738,0.00019944,2]
[373323469,1752945049428,-300.0,0.0002,2]
[373323471,1752945049437,-173.416,0.0002,2]
[373323473,1752945049446,-300.40023785,0.0002,2]
[373323475,1752945049455,-829.05,0.00020018,2]
[373323476,1752945049465,-5495.84793931,0.00020107,2]
[373323478,1752945049474,-500.0,0.00020121,2]
[373323480,1752945049484,-151.0,0.00020121,2]
[373323483,1752945049494,-500.0,0.00020121,2]
[373323484,1752945049504,-151.0,0.00020121,2]
[373323486,1752945049513,-773.74,0.00020125,3]
[373323489,1752945049523,-397.71716,0.00020187,2]
[373323491,1752945049532,-719.84,0.00020188,2]
[373323493,1752945049542,-460.0,0.00020188,2]
[373323495,1752945049551,-460.0,0.00020188,2]
[373323497,1752945049560,-1398.46,0.00020188,2]
[373323498,1752945049569,-1318.07,0.00020188,2]
[373323500,1752945049579,-570.18,0.00020188,2]
[373323502,1752945049588,-195.72814674,0.00020189,2]
[373323504,1752945049598,-1414.02,0.00020189,2]
[373323506,1752945049608,-460.0,0.00020189,2]
[373323508,1752945049617,-460.0,0.0002019,2]
[373323510,1752945049627,-460.0,0.00020191,2]
[373323512,1752945049636,-631.23,0.00020191,2]
[373323514,1752945049646,-460.0,0.00020191,2]
[373323516,1752945049655,-460.0,0.00020191,2]
[373323518,1752945049664,-460.0,0.00020249,2]
[373323520,1752945049673,-829.05,0.00020292,2]
[373323522,1752945049682,-500.0,0.0002035,2]
[373323524,1752945049691,-659.6987715,0.00020382,2]
[373323836,1752945669114,399.00000001,0.00027397,120]
[373323837,1752945731272,357.945444,0.00013699,2]
[373323869,1752946155809,500.0,0.00027,120]
[373323870,1752946176470,500.0,0.00027,120]
[373323872,1752946220229,500.0,0.00027,120]
[373323886,1752946232670,-267.15803426,0.00017173,2]
[373323887,1752946232682,-475.6824244,0.00017173,2]
[373323888,1752946232728,-457.15954134,0.00017173,2]
[373323889,1752946232738,-322.84045866,0.00017174,2]
[373323921,1752946238609,-137.15954134,0.00017174,2]
[373323922,1752946238619,-460.0,0.00017174,2]
[373323923,1752946238629,-300.0,0.00017445,2]
[373323924,1752946238640,-712.0,0.00017445,2]
[373323925,1752946238650,-460.0,0.00017446,2]
[373323926,1752946238660,-460.0,0.00017446,2]
[373323927,1752946238670,-548.70595581,0.00017446,2]
[373323928,1752946238680,-460.0,0.00017446,2]
[373323929,1752946238690,-460.0,0.00017446,2]
[373323930,1752946238700,-1037.32,0.00017446,2]
[373323931,1752946238709,-676.16,0.00017446,2]
[373323932,1752946238719,-460.0,0.00017446,2]
[373323933,1752946238729,-477.68,0.00017446,2]
[373323934,1752946238738,-445.57450285,0.00017446,2]
[373323935,1752946238750,-14.42549715,0.00017446,2]
[373323936,1752946238760,-460.0,0.00017446,2]
[373323937,1752946238770,-460.0,0.00017446,2]
[373323938,1752946238779,-481.10143618,0.00017446,2]
[373323939,1752946238790,-460.0,0.00017446,2]
[373323940,1752946238799,-460.0,0.00017446,2]
[373323941,1752946238809,-1103.69,0.00017446,2]
[373323942,1752946238819,-460.0,0.00017446,2]
[373323943,1752946238829,-460.0,0.00017446,2]
[373323944,1752946238838,-500.0,0.00017446,2]
[373323945,1752946238848,-460.0,0.00017446,2]
[373323946,1752946238858,-368.414591,0.00017447,2]
[373323947,1752946238867,-437.93175216,0.00017447,2]
[373323948,1752946238877,-460.0,0.00017447,2]
[373323949,1752946238887,-224.26,0.00017447,2]
[373323950,1752946238897,-460.0,0.00017447,2]
[373323951,1752946238907,-460.0,0.00017447,2]
[373323952,1752946238916,-460.0,0.00017447,2]
[373323953,1752946238927,-460.0,0.00017447,2]
[373323954,1752946238937,-460.0,0.00017447,2]
[373323955,1752946238950,-460.0,0.00017447,2]
[373323956,1752946238960,-460.0,0.00017447,2]
[373323957,1752946238971,-460.0,0.00017447,2]
[373323958,1752946238981,-461.99101554,0.00017447,2]
[373323959,1752946238991,-460.0,0.00017447,2]
[373323960,1752946239001,-461.68189417,0.00017447,2]
[373323961,1752946239011,-460.0,0.00017447,2]
[373323962,1752946239020,-460.0,0.00017447,2]
[373323963,1752946239030,-460.0,0.00017447,2]
[373323964,1752946239039,-460.0,0.00017447,2]
[373323965,1752946239049,-460.0,0.00017447,2]
[373323966,1752946239059,-460.0,0.00017447,2]
[373323967,1752946239069,-460.0,0.00017447,2]
[373323968,1752946239079,-460.0,0.00017447,2]
[373323969,1752946239089,-460.0,0.00017447,2]
[373323970,1752946239099,-460.0,0.00017447,2]
[373323971,1752946239108,-1007.93,0.00017447,2]
[373323972,1752946239118,-460.0,0.00017447,2]
[373323973,1752946239127,-460.0,0.00017447,2]
[373323974,1752946239136,-532.11,0.00017447,2]
[373323975,1752946239147,-460.0,0.00017447,2]
[373323976,1752946239157,-460.0,0.00017447,2]
[373323977,1752946239166,-460.0,0.00017447,2]
[373323978,1752946239176,-927.79,0.00017447,2]
[373323979,1752946239185,-460.0,0.00017447,2]
[373323980,1752946239195,-460.0,0.00017447,2]
[373323981,1752946239204,-460.0,0.00017448,2]
[373323982,1752946239214,-460.0,0.00017448,2]
[373323983,1752946239223,-460.0,0.0001772,2]
[373323984,1752946239233,-1037.32,0.0001772,2]
[373323985,1752946239242,-676.16,0.0001772,2]
[373323986,1752946239252,-460.0,0.0001772,2]
[373323987,1752946239262,-460.0,0.0001772,2]
[373323988,1752946239271,-460.0,0.0001772,2]
[373323989,1752946239281,-460.0,0.0001772,2]
[373323990,1752946239291,-1103.69,0.0001772,2]
[373323991,1752946239301,-500.0,0.00017721,2]
[373323992,1752946239311,-460.0,0.00017721,2]
[373323993,1752946239321,-460.0,0.00017721,2]
[373323994,1752946239336,-460.0,0.00017721,2]
[373323995,1752946239346,-460.0,0.00017721,2]
[373323996,1752946239356,-192.87853338,0.00017721,2]
[373323997,1752946239366,-460.0,0.00017721,2]
[373323998,1752946239376,-460.0,0.00017721,2]
[373323999,1752946239385,-460.0,0.00017721,2]
[373324000,1752946239396,-196.1100766,0.00017721,2]
[373324001,1752946239406,-460.0,0.00017721,2]
[373324002,1752946239418,-460.0,0.00017721,2]
[373324003,1752946239427,-460.0,0.00017721,2]
[373324004,1752946239437,-1007.93,0.00017721,2]
[373324005,1752946239447,-460.0,0.00017721,2]
[373324006,1752946239457,-460.0,0.00017721,2]
[373324007,1752946239467,-460.0,0.00017721,2]
[373324008,1752946239477,-532.11,0.00017721,2]
[373324009,1752946239487,-460.0,0.00017721,2]
[373324010,1752946239501,-927.79,0.00017721,2]
[373324011,1752946239510,-460.0,0.00017721,2]
[373324012,1752946239520,-500.0,0.00017721,2]
[373324013,1752946239530,-388.17892129,0.00017722,2]
[373324014,1752946239541,-460.0,0.00017722,2]
[373324015,1752946239551,-460.0,0.00017994,2]
[373324016,1752946239560,-1037.32,0.00017994,2]
[373324017,1752946239572,-676.16,0.00017994,2]
[373324018,1752946239582,-460.0,0.00017994,2]
[373324019,1752946239591,-460.0,0.00017994,2]
[373324020,1752946239601,-460.0,0.00017994,2]
[373324021,1752946239611,-259.6,0.00017994,2]
[373324022,1752946239621,-1103.69,0.00017994,2]
[373324023,1752946239630,-460.0,0.00017995,2]
[373324024,1752946239640,-460.0,0.00017995,2]
[373324025,1752946239650,-460.0,0.00017995,2]
[373324026,1752946239660,-460.0,0.00017995,2]
[373324027,1752946239670,-1007.93,0.00017995,2]
[373324028,1752946239680,-460.0,0.00017995,2]
[373324029,1752946239690,-460.0,0.00017995,2]
[373324030,1752946239700,-460.0,0.00017995,2]
[373324031,1752946239710,-532.11,0.00017995,2]
[373324032,1752946239720,-460.0,0.00017995,2]
[373324033,1752946239731,-927.79,0.00017995,2]
[373324034,1752946239741,-460.0,0.00017995,2]
[373324035,1752946239751,-460.0,0.00017996,2]
[373324036,1752946239762,-460.0,0.00018268,2]
[373324037,1752946239772,-1037.32,0.00018268,2]
[373324038,1752946239783,-676.16,0.00018268,2]
[373324039,1752946239793,-460.0,0.00018268,2]
[373324040,1752946239803,-460.0,0.00018268,2]
[373324041,1752946239813,-460.0,0.00018268,2]
[373324042,1752946239822,-1103.69,0.00018268,2]
[373324043,1752946239832,-460.0,0.00018269,2]
[373324044,1752946239841,-460.0,0.00018269,2]
[373324045,1752946239852,-460.0,0.00018269,2]
[373324046,1752946239863,-460.0,0.00018269,2]
[373324047,1752946239873,-1007.93,0.00018269,2]
[373324048,1752946239882,-460.0,0.00018269,2]
[373324049,1752946239891,-460.0,0.00018269,2]
[373324050,1752946239901,-532.11,0.00018269,2]
[373324051,1752946239911,-460.0,0.00018269,2]
[373324052,1752946239920,-927.79,0.00018269,2]
[373324053,1752946239930,-460.0,0.00018269,2]
[373324054,1752946239939,-500.0,0.00018269,2]
[373324055,1752946239948,-460.0,0.0001827,2]
[373324056,1752946239958,-460.0,0.00018542,2]
[373324057,1752946239967,-1037.32,0.00018542,2]
[373324058,1752946239977,-676.16,0.00018542,2]
[373324059,1752946239986,-460.0,0.00018542,2]
[373324060,1752946239996,-460.0,0.00018542,2]
[373324061,1752946240005,-460.0,0.00018542,2]
[373324062,1752946240014,-1103.69,0.00018542,2]
[373324063,1752946240024,-460.0,0.00018543,2]
[373324064,1752946240035,-460.0,0.00018543,2]
[373324065,1752946240046,-460.0,0.00018543,2]
[373324066,1752946240055,-460.0,0.00018543,2]
[373324067,1752946240065,-1007.93,0.00018543,2]
[373324068,1752946240075,-460.0,0.00018543,2]
[373324069,1752946240084,-460.0,0.00018543,2]
[373324070,1752946240094,-532.11,0.00018543,2]
[373324071,1752946240104,-460.0,0.00018543,2]
[373324072,1752946240114,-927.79,0.00018543,2]
[373324073,1752946240123,-460.0,0.00018543,2]
[373324074,1752946240134,-460.0,0.00018544,2]
[373324075,1752946240144,-460.0,0.0001857,2]
[373324076,1752946240154,-460.0,0.0001857,2]
[373324077,1752946240164,-460.0,0.0001857,2]
[373324078,1752946240173,-460.0,0.0001857,2]
[373324079,1752946240183,-460.0,0.0001857,2]
[373324080,1752946240192,-312.81081687,0.0001857,2]
[373324081,1752946240202,-207.4,0.00018575,2]
[373324082,1752946240211,-424.90961907,0.00018706,2]
[373324083,1752946240221,-460.0,0.00018816,2]
[373324084,1752946240231,-1037.32,0.00018816,2]
[373324085,1752946240240,-676.16,0.00018816,2]
[373324086,1752946240250,-460.0,0.00018816,2]
[373324087,1752946240259,-460.0,0.00018816,2]
[373324088,1752946240269,-460.0,0.00018816,2]
[373324089,1752946240278,-1103.69,0.00018816,2]
[373324090,1752946240288,-460.0,0.00018817,2]
[373324091,1752946240297,-460.0,0.00018817,2]
[373324092,1752946240312,-460.0,0.00018817,2]
[373324094,1752946240327,-460.0,0.00018817,2]
[373324096,1752946240337,-1007.93,0.00018817,2]
[373324098,1752946240347,-460.0,0.00018817,2]
[373324099,1752946240357,-460.0,0.00018817,2]
[373324100,1752946240367,-532.11,0.00018817,2]
[373324101,1752946240377,-460.0,0.00018817,2]
[373324102,1752946240386,-927.79,0.00018817,2]
[373324103,1752946240397,-510.8102156,0.00018817,2]
[373324104,1752946240407,-163.76,0.00018817,2]
[373324106,1752946240417,-460.0,0.00018818,2]
[373324108,1752946240430,-460.0,0.00018844,2]
[373324110,1752946240440,-4916.66018506,0.000189,2]
[373324111,1752946240450,-420.0,0.00019045,2]
[373324113,1752946240460,-12612.80205064,0.00019064,2]
[373324114,1752946240471,-215.67360783,0.00019064,2]